Cogmind - Beta 17 @@@ ROGUE MODE // 2026.07.25 @ 11:38:34 Player: SunShine214 Result: Core destroyed Performance ------------- Evolutions (0) 0 Regions Visited (1) 200 Robots Destroyed (13) 65 Value Destroyed (258) 258 Prototype IDs (0) 0 Alien Tech Used (0) 0 Bonus (0) 0 TOTAL SCORE: 523 Bonus ------- None Cogmind --------- Core Integrity 0/250 Matter 221/300 Energy 100/100 System Corruption 12% Temperature Cool (0) Movement Core (400) Ox7 Location -10/Materials Parts ------- > --- POWER (1) -------- (None) > --- PROPULSION (2) --- (None) > --- UTILITY (2) ------ Large Storage Unit > --- WEAPON (2) ------- Light Assault Rifle Light Assault Rifle > --- INVENTORY (15) --- Flight Unit Flight Unit Large Storage Unit Sensor Array Signal Interpreter Targeting Computer Light Armor Plating EM Pulse Gun Beam Cannon Mining Laser Peak State ------------ > --- POWER ------------ Light Ion Engine > --- PROPULSION ------- Light Treads Light Treads > --- UTILITY ---------- Large Storage Unit Seismic Detector > --- WEAPON ----------- Beam Cannon Mining Laser > --- INVENTORY -------- Flight Unit Flight Unit Large Storage Unit Sensor Array Signal Interpreter Targeting Computer Light Armor Plating EM Pulse Gun Light Assault Rifle Light Assault Rifle [Rating: 8] Favorites ----------- Power Light Ion Engine Engine Light Ion Engine Propulsion Light Treads Treads Light Treads Utility Seismic Detector Device Seismic Detector Storage Small Storage Unit Weapon Light Assault Rifle Energy Gun EM Pulse Gun Energy Cannon Beam Cannon Ballistic Gun Light Assault Rifle Special Weapon Mining Laser Build | -11 -10 ------- Run | Yrd Mat Slots Evolved . | . . Power . | . . Propulsion . | . . Utility . | . . Weapon . | . . Parts Attached 13 | 7 6 Power 1 | 1 . Engine 1 | 1 . Core . | . . Reactor . | . . Propulsion 2 | 2 . Treads 2 | 2 . Leg . | . . Wheel . | . . Hover . | . . Flight . | . . Utility 4 | 2 2 Device 1 | 1 . Storage 3 | 1 2 Processor . | . . Hackware . | . . Protection . | . . Artifact . | . . Weapon 6 | 2 4 Energy Gun 1 | 1 . Energy Cannon 1 | . 1 Ballistic Gun 3 | 1 2 Ballistic Cannon . | . . Launcher . | . . Special Weapon 1 | . 1 Impact Weapon . | . . Slashing Weapon . | . . Piercing Weapon . | . . Special Melee Weapon . | . . Unidentified Prototypes . | . . Parts Lost 4 | . 4 Power 1 | . 1 Propulsion 2 | . 2 Utility 1 | . 1 Weapon . | . . Highest Loss Streak 4 | . 4 To Critical Strikes . | . . Average Backups 4 | 1 6 Power . | . . Propulsion 1 | . 1 Utility 1 | . 2 Weapon 2 | 1 2 Tool/Special . | . . Unused Backups 8 | . 8 Power . | . . Propulsion 2 | . 2 Utility 5 | . 5 Weapon 1 | . 1 Tool/Special . | . . Average Slot Usage (%) 96 | . 96 Engine 13 | . 13 Treads 26 | . 26 Device 12 | . 12 Storage 14 | . 14 Energy Gun 12 | . 12 Energy Cannon 2 | . 2 Ballistic Gun 12 | . 12 Peak Build Rating 8 | 7 8 Average Rating 6 | 5 7 On Entrance 3 | . 7 Avg Prop Armor Cover (%) . | . . Naked Turns . | . . Heaviest Build 29 | 12 29 Greatest Support 40 | 40 40 Greatest Overweight (x) . | . . Average Overweight (x) . | . . Largest Inventory Capacity 15 | 8 15 Average Capacity 9 | 7 10 Most Carried 10 | 2 10 Average Carried 4 | 1 6 Final Capacity 15 | 8 15 Final Carried 10 | 2 10 Class Distribution -------------------- 100% | Mutant Dominant Class ---------------- Mutant | -10/Materials Resources | -11 -10 ----------- Run | Yrd Mat Matter Collected 296 | 284 12 Remotely . | . . Salvage Created 390 | 121 269 Parts 30 | 15 15 Haulers Intercepted . | . . Recyclers Shooed 1 | . 1 Parts Field Recycled . | . . Retrieved Matter . | . . Parts Self-Destructed . | . . Prevented . | . . Parts Restored . | . . Kills | -11 -10 ------- Run | Yrd Mat Combat Hostiles Destroyed 8 | . 8 Guns 8 | . 8 Classes Destroyed 3 | 1 2 Tunneler 5 | 5 . Swarmer 3 | . 3 Grunt 5 | . 5 Best Kill Streak 3 | 3 3 Combat Bots Only 3 | . 3 Max Kills in Single Turn 1 | 1 1 Gunslinging . | . . Exploded . | . . Melee . | . . Uniques/NPCs Destroyed . | . . Combat | -11 -10 -------- Run | Yrd Mat Hostile Shots Fired 85 | . 85 Missed 11 | . 11 Hits 74 | . 74 Projectile 74 | . 74 Damage Taken 864 | . 864 Core 258 | . 258 Absorbed by Shields . | . . Core Remaining (%) 100 | 100 . Volleys Fired 52 | 14 38 Largest 2 | 2 2 Hottest 160 | 60 160 Shots Fired 94 | 28 66 Gun 80 | 28 52 Cannon 13 | . 13 Launcher . | . . Special 1 | . 1 Kinetic 42 | 14 28 Thermal 14 | . 14 Explosive . | . . Electromagnetic 38 | 14 24 Robot Hit Streak 6 | 5 6 Robot Miss Streak 6 | 3 6 Penetration Max . | . . Secondary Targets . | . . Shots Hit Robots 50 | 15 35 Core Hits 25 | 7 18 Critical Kills 1 | . 1 Critical Parts Destroyed . | . . Critical Strikes 1 | . 1 Destroy 1 | . 1 Melee Attacks . | . . Impact . | . . Slashing . | . . Piercing . | . . Sneak Attacks . | . . Combat Hostiles . | . . Follow-up Attacks . | . . Damage Inflicted 635 | 193 442 Guns 503 | 193 310 Cannons 122 | . 122 Explosions . | . . Melee . | . . Ramming 10 | . 10 Kinetic 253 | 74 179 Thermal 122 | . 122 Explosive . | . . Electromagnetic 250 | 119 131 Impact . | . . Slashing . | . . Piercing . | . . Highest Corruption 12 | . 12 Average Corruption 4 | . 4 Corruption Purged . | . . Corruption Blocked . | . . Effects 8 | . 8 Message Errors 1 | . 1 Matter Fused 1 | . 1 Heat Flow Errors 1 | . 1 Energy Discharges 4 | . 4 Data Loss (minor) 1 | . 1 Overload Shots . | . . Overflow Damage . | . . Projectiles . | . . Explosions . | . . Melee . | . . Knockbacks . | . . Impact . | . . Kinetic . | . . Secondary . | . . Self-Inflicted Damage 6 | . 6 Shots . | . . Rammed 1 | . 1 Targets Rammed 1 | . 1 Kicked . | . . Crushed . | . . Highest Temperature 561 | 40 561 Average Temperature 136 | 20 167 Received Heat Transfer 408 | . 408 Effects 10 | . 10 Shutdowns 2 | . 2 Energy Bleed 1 | . 1 Interference 3 | . 3 Short Circuit 1 | . 1 Damage (minor) 1 | . 1 Damage (major) 1 | . 1 Damage (core) 1 | . 1 Siege Activations . | . . Martial Activations . | . . Shielding Activations . | . . Robots Disrupted . | . . Combat Hostiles . | . . Robots Corrupted . | . . Combat Hostiles . | . . Parts Fried . | . . Impact Corruptions . | . . Robots Melted . | . . Combat Hostiles . | . . Parts Melted . | . . Heat Transferred 259 | . 259 Parts Sabotaged . | . . Parts Stolen . | . . Parts Stripped . | . . Power Chain Reactions . | . . Alert | -11 -10 ------- Run | Yrd Mat Maximum Alert Level . | . . Low Security (%) 100 | 100 100 Level 1 . | . . Level 2 . | . . Level 3 . | . . Level 4 . | . . Level 5 . | . . High Security . | . . Max Security . | . . Peak Influence 90 | 10 90 Initial . | . . Average 22 | 1 33 Influence Increases 277 | 25 252 Destroy 0b10 Robot/C 160 | . 160 Destroy 0b10 Robot/NC 25 | 25 . Destroy Leader 30 | . 30 Disable Machine 15 | . 15 Destroy Structure 2 | . 2 Lose Combat Pursuer 45 | . 45 Influence Decreases 225 | 25 200 Time Decay 185 | 25 160 Lost Part 40 | . 40 Squads Dispatched 2 | . 2 Investigation 2 | . 2 Extermination . | . . Reinforcement . | . . Assault . | . . Garrison . | . . Intercept . | . . Searches Triggered . | . . Construction Impeded . | . . Haulers Reinforced . | . . Active Scanning Responses . | . . Cargo Convoy Interrupts . | . . Stealth | -11 -10 --------- Run | Yrd Mat Distress Signals . | . . Communications Jammed . | . . Distress Signals . | . . Times Spotted 15 | . 15 Peak Tracking Total 6 | . 6 Tactical Retreats 1 | . 1 Traps | -11 -10 ------- Run | Yrd Mat Traps Triggered 5 | . 5 Indirectly . | . . Trap Hack Attempts . | . . Triggered . | . . Disarmed . | . . Reprogrammed . | . . Reused . | . . Traps Extracted . | . . Installed . | . . Triggered . | . . Machines | -11 -10 ---------- Run | Yrd Mat Machines Disabled 1 | . 1 Max in Single Turn 1 | . 1 Machines Repaired . | . . Machines Dismantled . | . . Machines Sabotaged . | . . Overloaded Fab Kills . | . . Hacking | -11 -10 --------- Run | Yrd Mat Machines Accessed 1 | . 1 Terminals 1 | . 1 Fabricators . | . . Repair Stations . | . . Recycling Units . | . . Scanalyzers . | . . Garrison Access . | . . Total Hacks 2 | . 2 Successful 1 | . 1 Failed 1 | . 1 Catastrophic . | . . Database Lockouts . | . . Manual . | . . Terminals 2 | . 2 Fabricators . | . . Repair Stations . | . . Recycling Units . | . . Scanalyzers . | . . Garrison Access . | . . Terminal Hacks 1 | . 1 Hauler Manifests 1 | . 1 Fabricator Hacks . | . . Repair Station Hacks . | . . Recycling Unit Hacks . | . . Scanalyzer . | . . Garrison Access Hacks . | . . Unauthorized Hacks . | . . Terminals . | . . Fabricators . | . . Repair Stations . | . . Recycling Units . | . . Scanalyzers . | . . Garrison Access . | . . Data Cores Recovered . | . . Used . | . . Hacking Detections 1 | . 1 Full Trace Events 1 | . 1 Feedback Events . | . . Feedback Blocked . | . . Robot Schematics Acquired . | . . Robots Built . | . . Authchips . | . . Time . | . . Total Robot Build Rating . | . . Part Schematics Acquired . | . . Parts Built . | . . Authchips . | . . Time . | . . Total Part Build Rating . | . . Part Studies Acquired . | . . Parts Repaired . | . . Time . | . . Parts Recycled . | . . Recycled Matter . | . . Retrieved Matter . | . . Retrieved Components . | . . Parts Scanalyzed . | . . Part Schematics Acquired . | . . Parts Damaged . | . . Bothacking | -11 -10 ------------ Run | Yrd Mat Used RIF Installer . | . . Robots Hacked . | . . Non-combat . | . . Combat . | . . Robot Hacks Applied . | . . Relay Couplers Released . | . . Fabnet Peak Effective % . | . . Robots Rewired . | . . Allies Hacked . | . . Hacks Repelled . | . . Allies | -11 -10 -------- Run | Yrd Mat Total Allies . | . . Largest Group . | . . Highest-Rated Group . | . . Highest-Rated Ally . | . . Total Orders . | . . Ally Attacks . | . . Total Damage . | . . Kills . | . . Allies Corrupted . | . . Allies Melted . | . . Intel | -11 -10 ------- Run | Yrd Mat Active Infowar (turns) 533 | 97 436 Seismic 533 | 97 436 Robot Analysis Total . | . . Derelict Logs Recovered . | . . Drone Launches . | . . Drone Recoveries . | . . Exploration | -11 -10 ------------- Run | Yrd Mat Turns Passed 719 | 246 473 Spaces Moved 304 | 105 199 Core 6 | 6 . Treads 298 | 99 199 Legs . | . . Wheels . | . . Hover . | . . Flight . | . . Fastest Speed 50 | 50 160 Average Speed 157 | 153 160 Slowest Speed 160 | 160 160 Overloaded Moves . | . . Propulsion Burnouts . | . . Robots Hopped . | . . Potential Cave-ins . | . . Cave-ins Triggered . | . . Exploration Rate (%) 19 | 5 34 Regions Visited 1 Branch Regions . Pre-discovered Areas . | . . Known Exits Taken . | . . Unknown Exits Taken 1 | 1 . Scrap Searched . | . . Spaces Dug . | . . Terrain Destroyed . | . . Melee . | . . Projectile . | . . AOE . | . . Terrain Rammed 6 | . 6 Walls Destroyed . | . . Machines Disabled . | . . Actions | -11 -10 --------- Run | Yrd Mat Total 433 | 161 272 Wait 42 | 34 8 Move 303 | 104 199 Hop . | . . Pick Up 11 | 2 9 Fast Attach 7 | 7 . Attach . | . . Detach . | . . Swap 8 | . 8 Drop 4 | . 4 Fire 52 | 14 38 Melee . | . . Ram 5 | . 5 Kick . | . . Crush 1 | . 1 Escape Stasis . | . . Rewire . | . . Trap . | . . Miscellaneous . | . . Route ------- -11/Scrapyard -10/Materials (discovered 1 exit: [*Min]) History --------- Turn | Location | Event 9 | -11/Scrapyard | Discovered new exit (range 14) 247 | -11/Scrapyard | Entered Materials 305 | -10/Materials | Build established: Mutant 480 | -10/Materials | Discovered new exit (range 12) 692 | -10/Materials | Core integrity fell below 50% 712 | -10/Materials | Core integrity fell below 20% 713 | -10/Materials | System corruption reached 10% 720 | -10/Materials | Core destroyed Last Messages --------------- 00701_ K-01 Serf collects debris. 00703_ Slammed into Wall. 00703_ Destabilizing: System corrupted (+1). 00703_ Lgt. Ion Engine broken. 00703_ Destabilizing: Short circuit. 00705_ K-01 Serf collects debris. 00707_ Broken Lgt. Ion Engine destroyed. 00708_ Slammed into Wall. 00708_ Lgt. Assault Rifle broken. 00708_ Destabilizing: Short circuit. 00708_ Destabilizing: System corrupted (+2). 00712_ Slammed into Wall. 00712_ Destabilizing: System corrupted (+1). 00712_ Destabilizing: Core damaged (-2). 00716_ Slammed into Wall. 00716_ Lgt. Assault Rifle broken. 00716_ Destabilizing: Short circuit. 00716_ Destabilizing: System corrupted (+2). 00720_ Slammed into Wall. 00720_ Destabilizing: Core damaged (-10). Map ----- +----------------------------------------------------+ | ?????????????????????????????????????????????????? | | ?????????????????????????????????????????????????? | | ?????#####???????????????????????????????????????? | | ????##"""##??????????????????????????????????????? | | #####"|||"##????????????????????????#????????????? | | #"" ""#??????????????"???????? #????????????? | | # #?????????????? ??????? ??????????????? | | # < #?????????????#+##+### ???????????????? | | "" # #?????????????# ????????????????? | | "" # #?????????????# ?????????????????? | | "" ## ##?????????????# ??????????????????? | | "" ### ##?????????????## #???????????????????? | | "" #?# #????????#######T #???????????????????? | | "" #?# #???????##! ! ### #???????????????????? | | "" #?# #???????#! ! !## #???????????????????? | | ### ##??????# ## ##??????????????????? | | +#+## ######## # #??????????????????? | | !#??????????????????? | | #??????????????????? | | ^ """ """ #??????????????????? | | ## ^ """ """ #[ / #??????????????????? | | ##+### """ """ ##############???????????? | | # %+= #???????????? | | "" + #####%g #???????????? | | "" # #???# =k #???????????? | | "" # #########+##???#@ =%! #???????????? | | "" # #??????????????# g! #???????????? | | # #??????????????#######+######???????????? | | ###+## #?????????????????????? ???????????????? | | ??# #???????????????????????##??????????????? | | ??# ^ % #???????????????????????????????????????? | | ??# ###+#####????????????????????????????????????? | | ??# # * #????????????????????????????????????? | | ### # #????????????????????????????????????? | | # # #???? ??????????????????????????????? | | # # #?? ???????????????????????????????? | | # # *%[ #? #????????????????????????????????? | | # ######/## #????????????????????????????????? | | # !! #????????????????????????????????? | | + ! #????????????????????????????????? | | # """ +????????????????????????????????? | | ## """ #????????????????????????????????? | | ## """ #????????????????????????????????? | | ## #????????????????????????????????? | | ## #????????????????????????????????? | | ####%### #????????????????????????????????? | | ???# #?## ### #????????????????????????????????? | | ???# #??# #?# #????????????????????????????????? | | ???# #??# #?# #????????????????????????????????? | | ???# #??# #?# #????????????????????????????????? | +----------------------------------------------------+ Best States ------------- Heat Dissipation 25 Energy Generation 10 Energy Capacity 125 Matter Stores 300 Matter Capacity 300 Sight Range 16 Terrain Scan Density 10 Evasion (%) 40 Recoil Reduction 2 Item Schematics ----------------- None Robot Schematics ------------------ None Fabricated ------------ Nothing Repaired ---------- Nothing Studied --------- None Alien Tech Used ----------------- None Achievements -------------- None Challenges ------------ None Game ------ Seed ArcLauncherWand Manual? 0 Play Time 00:06:48 Cumulative 182.4 hours Start 2026.07.25 @ 11:34:11 End 2026.07.25 @ 11:38:34 Sessions 1 Manual Loads 0 Difficulty Rogue Special Mode None Game No. 291 Rogue 291 Adventurer 0 Explorer 0 Win Type - Total 1 Types 1/0/0/0/0/0/0/0/0/0 Lore% 63 Gallery% 58 Achievement% 44 Wizard Run 0 Options --------- Layout 1 ASCII 0 Keyboard 1 Movement Arrows Keybinds 0 Fullscreen 1 Font 24/Smallcaps Map View 50x35 Zoom Use 0% Tactical HUD 1 Map Filters NONE Filters NONE Steam 1 RUN: 3691a11a-ce4c-4bb8-9121-5b182a53c85a